Cogmind - Beta 13 @@@ ROGUE MODE // 2024.04.30 @ 06:22:45 Player: naththebg Result: Destroyed by as-51175 with Assembled Heavy Rifle Performance ------------- Evolutions (0) 0 Regions Visited (4) 800 Robots Destroyed (30) 150 Value Destroyed (816) 816 Prototype IDs (25) 500 Alien Tech Used (0) 0 Bonus (300) 300 TOTAL SCORE: 2566 Bonus ------- Aligned with FarCom 300 Cogmind --------- Core Integrity 0/250 Matter 202/300 Energy 45/125 System Corruption 0% Temperature Cool (21) Movement Core (1000) Ox19 Location -9/Mines Parts ------- > --- POWER (1) -------- Light Ion Engine > --- PROPULSION (2) --- (None) > --- UTILITY (2) ------ High-capacity Storage Unit Medium Armor Plating > --- WEAPON (2) ------- Slug Cannon Grenade Launcher > --- INVENTORY (20) --- Improved Heat Sink Coolant Injector High-capacity Matter Pod (192) Targeting Computer Improved Shield Generator Splice Drone Bay EM Pulse Gun Beam Cannon Heavy Ion Cannon YOLO Cannon Grenade Launcher Peak State ------------ > --- POWER ------------ Improved Ion Engine > --- PROPULSION ------- Light Treads Light Treads > --- UTILITY ---------- High-capacity Storage Unit Light Armor Plating > --- WEAPON ----------- YOLO Cannon > --- INVENTORY -------- Ion Engine Light Ion Engine Light Treads Improved Heat Sink Coolant Injector High-capacity Matter Pod Targeting Computer Improved Shield Generator Splice Drone Bay EM Pulse Gun Beam Cannon Heavy Ion Cannon Slug Cannon Grenade Launcher Grenade Launcher [Rating: 29] Favorites ----------- Power Ion Engine Engine Ion Engine Propulsion Light Treads Treads Light Treads Utility Light Armor Plating Device Sensor Array Storage Large Storage Unit Protection Light Armor Plating Weapon EM Pulse Gun Energy Gun EM Pulse Gun Energy Cannon YOLO Cannon Ballistic Cannon Slug Cannon Launcher Grenade Launcher Build | -11 -10 -10 -10 -9 ------- Run | Yrd Mat Min Exi Min Slots Evolved . | . . . . . Power . | . . . . . Propulsion . | . . . . . Utility . | . . . . . Weapon . | . . . . . Parts Attached 35 | 6 10 2 1 16 Power 3 | 1 . . . 2 Engine 3 | 1 . . . 2 Core . | . . . . . Reactor . | . . . . . Propulsion 6 | 2 2 . . 2 Treads 6 | 2 2 . . 2 Leg . | . . . . . Wheel . | . . . . . Hover . | . . . . . Flight . | . . . . . Utility 9 | 1 4 . . 4 Device 1 | . 1 . . . Storage 4 | 1 2 . . 1 Processor . | . . . . . Hackware . | . . . . . Protection 4 | . 1 . . 3 Artifact . | . . . . . Weapon 17 | 2 4 2 1 8 Energy Gun 4 | 2 2 . . . Energy Cannon 5 | . . . 1 4 Ballistic Gun . | . . . . . Ballistic Cannon 3 | . . . . 3 Launcher 5 | . 2 2 . 1 Special Weapon . | . . . . . Impact Weapon . | . . . . . Slashing Weapon . | . . . . . Piercing Weapon . | . . . . . Special Melee Weapon . | . . . . . Unidentified Prototypes . | . . . . . Parts Lost 8 | . . . . 8 Power 1 | . . . . 1 Propulsion 4 | . . . . 4 Utility 3 | . . . . 3 Weapon . | . . . . . Highest Loss Streak 6 | . . . . 6 To Critical Strikes . | . . . . . Average Slot Usage (%) 91 | . 95 98 91 82 Engine 13 | . 14 14 14 13 Treads 27 | . 27 28 28 27 Storage 14 | . 14 14 14 14 Protection 11 | . 9 14 14 11 Energy Gun 10 | . 24 1 . . Energy Cannon 5 | . . . 8 14 Launcher 6 | . 3 25 11 . Naked Turns . | . . . . . Heaviest Build 68 | 14 32 34 46 68 Greatest Support 40 | 40 40 40 40 40 Greatest Overweight (x) 1 | 1 1 . 1 1 Average Overweight (x) . | . . . . 1 Largest Inventory Capacity 20 | 8 15 15 15 20 Average Capacity 14 | 7 10 15 15 18 Most Carried 15 | 5 11 11 15 15 Average Carried 9 | 1 5 9 12 13 Final Capacity 20 | 8 15 15 15 20 Final Carried 14 | 1 10 11 14 12 Class Distribution -------------------- 100% | Mutant Dominant Class ---------------- Mutant | -10/Materials Mutant | -10/Mines Mutant | -10/Exiles Mutant | -9/Mines Resources | -11 -10 -10 -10 -9 ----------- Run | Yrd Mat Min Exi Min Matter Collected 754 | 201 255 58 . 240 Remotely . | . . . . . Salvage Created 810 | . 354 . . 456 Parts 58 | . 36 . . 22 Haulers Intercepted 2 | . 2 . . . Recyclers Shooed . | . . . . . Parts Field Recycled . | . . . . . Retrieved Matter . | . . . . . Parts Self-Destructed . | . . . . . Prevented . | . . . . . Kills | -11 -10 -10 -10 -9 ------- Run | Yrd Mat Min Exi Min Combat Hostiles Destroyed 25 | . 6 . . 19 Guns 1 | . 1 . . . Cannons 9 | . . . . 9 AOE 13 | . 5 . . 8 Classes Destroyed 11 | . 6 . . 5 Worker 1 | . 1 . . . Builder 4 | . 1 . . 3 Tunneler 2 | . . . . 2 Hauler 2 | . 2 . . . Operator 1 | . 1 . . . Watcher 3 | . 3 . . . Grunt 13 | . 6 . . 7 Brawler 1 | . . . . 1 Sentry 2 | . . . . 2 Demolisher 1 | . . . . 1 Assembled 8 | . . . . 8 Best Kill Streak 8 | . 5 . . 8 Combat Bots Only 8 | . 3 . . 8 Max Kills in Single Turn 4 | . 2 . . 4 Gunslinging . | . . . . . Exploded 3 | . 1 . . 3 Melee . | . . . . . Uniques/NPCs Destroyed . | . . . . . Combat | -11 -10 -10 -10 -9 -------- Run | Yrd Mat Min Exi Min Hostile Shots Fired 118 | . 14 . . 104 Missed 27 | . 2 . . 25 Damage Taken 1496 | . 151 . . 1345 Core 259 | . 25 . . 234 Absorbed by Shields . | . . . . . Regen/Repaired (Parts) 15 | . 15 . . . Core Remaining (%) 100 | 100 . . . . Volleys Fired 51 | . 23 . . 28 Largest 2 | . 2 . . 2 Hottest 113 | . 80 . . 113 Shots Fired 79 | . 44 . . 35 Gun 36 | . 36 . . . Cannon 34 | . . . . 34 Launcher 9 | . 8 . . 1 Special . | . . . . . Kinetic 10 | . . . . 10 Thermal 24 | . . . . 24 Explosive 9 | . 8 . . 1 Electromagnetic 36 | . 36 . . . Robot Hit Streak 7 | . 7 . . 4 Robot Miss Streak 5 | . 2 . . 5 Penetration Max . | . . . . . Secondary Targets . | . . . . . Shots Hit Robots 43 | . 24 . . 19 Core Hits 45 | . 26 . . 19 Critical Kills 3 | . . . . 3 Critical Parts Destroyed 1 | . . . . 1 Critical Strikes 5 | . 1 . . 4 Meltdown 2 | . . . . 2 Destroy 2 | . . . . 2 Corrupt 1 | . 1 . . . Melee Attacks . | . . . . . Impact . | . . . . . Slashing . | . . . . . Piercing . | . . . . . Sneak Attacks . | . . . . . Combat Hostiles . | . . . . . Follow-up Attacks . | . . . . . Damage Inflicted 3421 | . 696 . . 2725 Guns 311 | . 311 . . . Cannons 1378 | . . . . 1378 Explosions 1732 | . 385 . . 1347 Melee . | . . . . . Ramming . | . . . . . Kinetic 128 | . . . . 128 Thermal 2523 | . . . . 2523 Explosive 459 | . 385 . . 74 Electromagnetic 311 | . 311 . . . Impact . | . . . . . Slashing . | . . . . . Piercing . | . . . . . Highest Corruption . | . . . . . Average Corruption . | . . . . . Corruption Purged . | . . . . . Corruption Blocked . | . . . . . Overload Shots . | . . . . . Overflow Damage 566 | . . . . 566 Projectiles 387 | . . . . 387 Explosions 179 | . . . . 179 Melee . | . . . . . Knockbacks . | . . . . . Impact . | . . . . . Kinetic . | . . . . . Secondary . | . . . . . Self-Inflicted Damage 164 | . . . . 164 Shots 3 | . . . . 3 Rammed . | . . . . . Targets Rammed . | . . . . . Kicked . | . . . . . Crushed . | . . . . . Highest Temperature 416 | . 132 . . 416 Average Temperature 80 | . 45 . . 100 Received Heat Transfer 408 | . 120 . . 288 Effects 4 | . . . . 4 Energy Bleed 2 | . . . . 2 Interference 1 | . . . . 1 Damage (minor) 1 | . . . . 1 Siege Activations . | . . . . . Robots Corrupted . | . . . . . Combat Hostiles . | . . . . . Parts Fried . | . . . . . Impact Corruptions . | . . . . . Robots Melted 2 | . . . . 2 Combat Hostiles 2 | . . . . 2 Parts Melted 2 | . . . . 2 Heat Transferred 2228 | . . . . 2228 Parts Sabotaged . | . . . . . Parts Stolen . | . . . . . Parts Stripped . | . . . . . Power Chain Reactions . | . . . . . Alert | -11 -10 -10 -10 -9 ------- Run | Yrd Mat Min Exi Min Peak Influence 353 | . 146 13 . 353 Initial 13 | . . 13 . . Average 58 | . 46 13 . 101 Maximum Alert Level 1 | . . . . 1 Low Security (%) 94 | 100 100 100 . 82 Level 1 5 | . . . . 17 Level 2 . | . . . . . Level 3 . | . . . . . Level 4 . | . . . . . Level 5 . | . . . . . High Security . | . . . . . Max Security . | . . . . . Squads Dispatched 1 | . 1 . . . Investigation . | . . . . . Extermination . | . . . . . Reinforcement 1 | . 1 . . . Assault . | . . . . . Garrison . | . . . . . Intercept . | . . . . . Searches Triggered . | . . . . . Construction Impeded . | . . . . . Haulers Reinforced . | . . . . . Active Scanning Responses . | . . . . . Cargo Convoy Interrupts . | . . . . . Stealth | -11 -10 -10 -10 -9 --------- Run | Yrd Mat Min Exi Min Distress Signals . | . . . . . Communications Jammed . | . . . . . Distress Signals . | . . . . . Times Spotted 32 | . 9 . . 23 Peak Tracking Total 7 | . 3 . . 7 Tactical Retreats 3 | . . . . 3 Traps | -11 -10 -10 -10 -9 ------- Run | Yrd Mat Min Exi Min Traps Triggered 2 | . 2 . . . Indirectly . | . . . . . Trap Hack Attempts . | . . . . . Triggered . | . . . . . Disarmed . | . . . . . Reprogrammed . | . . . . . Reused . | . . . . . Traps Extracted . | . . . . . Installed . | . . . . . Triggered . | . . . . . Machines | -11 -10 -10 -10 -9 ---------- Run | Yrd Mat Min Exi Min Machines Disabled 6 | . 1 . . 5 Max in Single Turn 1 | . 1 . . 1 Machines Repaired . | . . . . . Machines Dismantled . | . . . . . Machines Sabotaged . | . . . . . Overloaded Fab Kills . | . . . . . Hacking | -11 -10 -10 -10 -9 --------- Run | Yrd Mat Min Exi Min Machines Accessed 9 | . 6 1 1 1 Terminals 5 | . 5 . . . Fabricators . | . . . . . Repair Stations 1 | . 1 . . . Recycling Units . | . . . . . Scanalyzers . | . . . . . Garrison Access . | . . . . . Total Hacks 20 | . 17 1 1 1 Successful 11 | . 8 1 1 1 Failed 9 | . 9 . . . Catastrophic 1 | . 1 . . . Database Lockouts . | . . . . . Manual 2 | . . 1 1 . Terminals 15 | . 15 . . . Fabricators . | . . . . . Repair Stations 2 | . 2 . . . Recycling Units . | . . . . . Scanalyzers . | . . . . . Garrison Access . | . . . . . Terminal Hacks 9 | . 6 1 1 1 Prototype ID Bank 1 | . 1 . . . Open Door 2 | . . 1 . 1 Emergency Access Points 1 | . 1 . . . Alert Level 1 | . 1 . . . Unreport Threat 1 | . 1 . . . Locate Traps 1 | . 1 . . . Zone Layout 1 | . 1 . . . Derelict Proto ID Bank 1 | . . . 1 . Fabricator Hacks . | . . . . . Repair Station Hacks 2 | . 2 . . . Scan Component 1 | . 1 . . . Repair 1 | . 1 . . . Recycling Unit Hacks . | . . . . . Scanalyzer . | . . . . . Garrison Access Hacks . | . . . . . Unauthorized Hacks . | . . . . . Terminals . | . . . . . Fabricators . | . . . . . Repair Stations . | . . . . . Recycling Units . | . . . . . Scanalyzers . | . . . . . Garrison Access . | . . . . . Data Cores Recovered . | . . . . . Used . | . . . . . Hacking Detections 4 | . 4 . . . Full Trace Events 2 | . 2 . . . Feedback Events . | . . . . . Feedback Blocked . | . . . . . Robot Schematics Acquired . | . . . . . Robots Built . | . . . . . Authchips . | . . . . . Time . | . . . . . Total Robot Build Rating . | . . . . . Part Schematics Acquired . | . . . . . Parts Built . | . . . . . Authchips . | . . . . . Time . | . . . . . Total Part Build Rating . | . . . . . Parts Repaired 1 | . 1 . . . Time 38 | . 38 . . . Parts Recycled . | . . . . . Recycled Matter . | . . . . . Retrieved Matter . | . . . . . Retrieved Components . | . . . . . Parts Scanalyzed . | . . . . . Part Schematics Acquired . | . . . . . Parts Damaged . | . . . . . Bothacking | -11 -10 -10 -10 -9 ------------ Run | Yrd Mat Min Exi Min Used RIF Installer . | . . . . . Robots Hacked . | . . . . . Non-combat . | . . . . . Combat . | . . . . . Robot Hacks Applied . | . . . . . Relay Couplers Released . | . . . . . Fabnet Peak Effective % . | . . . . . Robots Rewired . | . . . . . Allies Hacked . | . . . . . Hacks Repelled . | . . . . . Allies | -11 -10 -10 -10 -9 -------- Run | Yrd Mat Min Exi Min Total Allies 1 | . . 1 . . Largest Group 1 | . . 1 1 . Highest-Rated Group 31 | . . 31 31 . Highest-Rated Ally 31 | . . 31 31 . Total Orders . | . . . . . Ally Attacks . | . . . . . Total Damage . | . . . . . Kills . | . . . . . Allies Corrupted . | . . . . . Allies Melted . | . . . . . Intel | -11 -10 -10 -10 -9 ------- Run | Yrd Mat Min Exi Min Robot Analysis Total . | . . . . . Derelict Logs Recovered . | . . . . . Drone Launches . | . . . . . Drone Recoveries . | . . . . . Exploration | -11 -10 -10 -10 -9 ------------- Run | Yrd Mat Min Exi Min Turns Passed 2798 | 68 1154 306 537 733 Spaces Moved 1362 | 50 625 188 262 237 Core 23 | 23 . . . . Treads 1339 | 27 625 188 262 237 Legs . | . . . . . Wheels . | . . . . . Hover . | . . . . . Flight . | . . . . . Fastest Speed 50 | 50 160 160 160 240 Average Speed 179 | 112 160 160 199 240 Slowest Speed 240 | 160 240 160 240 240 Overloaded Moves . | . . . . . Propulsion Burnouts . | . . . . . Robots Hopped . | . . . . . Cave-ins Triggered . | . . . . . Exploration Rate (%) 46 | 3 84 43 61 41 Regions Visited 4 Branch Regions 3 Pre-discovered Areas . | . . . . . Known Exits Taken . | . . . . . Unknown Exits Taken 4 | 1 1 1 1 . Scrap Searched 2 | . . 1 . 1 Spaces Dug 14 | . . . . 14 Terrain Destroyed 261 | . 47 . . 214 Melee . | . . . . . Projectile 12 | . . . . 12 AOE 249 | . 47 . . 202 Terrain Rammed . | . . . . . Walls Destroyed . | . . . . . Machines Disabled . | . . . . . Actions | -11 -10 -10 -10 -9 --------- Run | Yrd Mat Min Exi Min Total 1602 | 61 732 193 279 337 Wait 106 | . 58 2 11 35 Move 1358 | 49 624 187 261 237 Hop . | . . . . . Pick Up 35 | 6 15 2 3 9 Fast Attach 1 | 1 . . . . Attach 24 | 5 3 1 1 14 Detach 9 | . . . 2 7 Swap 10 | . 7 1 . 2 Drop 8 | . 2 . 1 5 Fire 51 | . 23 . . 28 Melee . | . . . . . Ram . | . . . . . Kick . | . . . . . Crush . | . . . . . Escape Stasis . | . . . . . Rewire . | . . . . . Trap . | . . . . . Miscellaneous . | . . . . . Route ------- -11/Scrapyard -10/Materials (discovered 4 exits: [*Mat x3] / *Min) -10/Mines -10/Exiles (discovered 2 exits: *Min x2) -9/Mines (discovered 1 exit: [*Mat]) History --------- Turn | Location | Event 12 | -11/Scrapyard | Discovered new exit (range 15) 69 | -11/Scrapyard | Entered Materials 266 | -10/Materials | Discovered new exit (range 10) 317 | -10/Materials | Build established: Mutant 358 | -10/Materials | Discovered new exit (range 10) 513 | -10/Materials | Discovered new exit (range 15) 621 | -10/Materials | Discovered new exit (range 3) 1091 | -10/Materials | Repaired Imp. Heat Sink 1223 | -10/Materials | Entered Mines 1363 | -10/Mines | Found the Drone Emporium 1374 | -10/Mines | Found Prototype Device 1442 | -10/Mines | Received a Mining Laser from a helpful Derelict 1521 | -10/Mines | Deemed a non-threat by the Exiles lab entrance 1523 | -10/Mines | Discovered new exit (range 5) 1529 | -10/Mines | Entered Exiles 1529 | -10/Exiles | Accompanied by 1 ally 1550 | -10/Exiles | Discovered new exit (range 15) 1566 | -10/Exiles | Met 8R-AWN 1605 | -10/Exiles | Met EX-HEX 1656 | -10/Exiles | Met EX-BIN 1683 | -10/Exiles | Aligned with FarCom system 1685 | -10/Exiles | Given EX-Vault access code 1725 | -10/Exiles | Opened EX-Vault 1739 | -10/Exiles | Found Firepult 1742 | -10/Exiles | Found YOLO Cannon 1817 | -10/Exiles | Exiles lab attacked by MAIN.C 2035 | -10/Exiles | Discovered new exit (range 14) 2066 | -10/Exiles | Left Exiles lab with YOLO Cannon 2066 | -10/Exiles | Entered Mines 2079 | -9/Mines | Met a Derelict who couldn't figure out how to use a Trap Extractor 2113 | -9/Mines | Met a Derelict bent on vengeance 2225 | -9/Mines | A weapon hastily lodged in a ceiling crevice suddenly fell to the ground 2618 | -9/Mines | Discovered new exit (range 11) 2713 | -9/Mines | Assembled infested the area 2718 | -9/Mines | Assisted by a Guerilla fighting off Assembled 2750 | -9/Mines | Core integrity fell below 50% 2779 | -9/Mines | Core integrity fell below 20% 2799 | -9/Mines | Destroyed by as-51175 with Assembled Heavy Rifle Last Messages --------------- Machine disabled. as-17787 destroyed. Med. Armor Plating destroyed. K-01 Serf collects debris. The unstable cave ceiling collapses. Med. Matter Pod crushed. K-01 Serf collects debris. U-05 Engineer lays Concrete. The unstable cave ceiling collapses. U-05 Engineer lays Concrete. Lgt. Treads destroyed. U-05 Engineer lays Concrete. K-01 Serf collects debris. U-05 Engineer lays Concrete. K-01 Serf collects debris. U-05 Engineer lays Concrete. U-05 Engineer destroyed. K-01 Serf collects debris. as-59654 suffers critical hit (Destroy). Destroyed Asb. Heavy Rifle. Map ----- +----------------------------------------------------+ | ??????????????????????????????????????????? | | ??????????????????????????????????????????? | | ??????????????????????????????????????????? | | ??????????????????????????????????????????? | | ??????????????????????????????????????????? | | ??????????????????????????????????????????? | | ??????????????????????????????????????????? | | ??????????????????????????????????????????? | | ??????????????????????????????????????????? | | ??????????????????????????????????????????? | | ??????????????????????????????????????????? | | ??????????????????????????????????????????? | | ??????????????????????????????????????????? | | ??????????????????????????????????????????? | | ??????????????????????????????????????????? | | ??????????????????????????????????????????? | | ??????????????????????????????????????????? | | ??????????????????????????????????????????? | | ??????????????????????????????????????????? | | ??????????????###?????????????????????????? | | ?????????????? #?????????????????????????? | | ??????????????# #?????????????????????????? | | ?????????????## #???#?????????????????????? | | ????????????##" ##### #####???????????????? | | ????????????# ; ; ### ;;;###?????????????? | | ????????????#;; ; ;; @ "##????????????? | | ????????????#; * [ / #????????????? | | ???????????## %= [ ;#???????????? | | ???????????# = ??????????? | | ???????????# ### * % #?????????? | | ???????????# # #= % #????????? | | ???????????## = a #????????? | | ####???????# *% = [ a #???????? | | """##??????# # # ;#??????? | | #??????# # #k; # ?????? | | [["#??????## # %# #### *!%% a ????? | | !!##???????## =%# ???## =%! ?????? | | ######?????## " #"????? | "#?????? | | # ##??#####" "#???? ???????? | | #?## #???? ???????? | | ## ### #???? ????????? | | ####="### ## ????????? | | ##?# ###?????????? | | ### ##??# = #???????????? | | ### ##### ## # #???????????? | | ##???#???????????? | | * ### ##????????????????? | | ###########?# ######????????????????? | | ##??????????# # #?????????????????????? | | ##?????????# # #?????????????????????? | +----------------------------------------------------+ Best States ------------- Heat Dissipation 25 Energy Generation 12 Energy Capacity 265 Matter Stores 300 Matter Capacity 300 Sight Range 16 Robot Scan Range 14 Terrain Scan Density 10 Armor Coverage 225 Evasion (%) 40 Recoil Reduction 2 Item Schematics ----------------- None Robot Schematics ------------------ None Fabricated ------------ Nothing Alien Tech Used ----------------- None Achievements -------------- None Challenges ------------ None Game ------ Seed SwordControlSink Manual? 0 Play Time 00:26:56 Cumulative 17.2 hours Start 2024.04.30 @ 05:56:19 End 2024.04.30 @ 06:22:45 Sessions 1 Manual Loads 0 Difficulty Rogue Special Mode None Game No. 11 Rogue 11 Adventurer 0 Explorer 0 Win Type - Total 0 Types 0/0/0/0/0/0/0/0/0 Lore% 10 Gallery% 20 Achievement% 15 Wizard Run 0 Options --------- Layout 1 ASCII 0 Keyboard 0 Movement Mouse Keybinds 0 Fullscreen 1 Font 24/Smallcaps Map View 50x35 Zoom Use 0% Tactical HUD 0 Map Filters NONE Filters NONE Steam 1 RUN: c7df53f3-c759-4d46-8b6b-0048ad1c8498